fUST/lending_fUST_20251002
["ID","MTS","AMOUNT","RATE_DAILY","PERIOD"]
[388766388,1759351870428,-500.0,0.00021917,2]
[388766389,1759351870437,-500.0,0.00021917,2]
[388766390,1759351870446,-314.54,0.00021917,2]
[388766391,1759351870455,-618.88,0.00021917,2]
[388766392,1759351870464,-573.49,0.00021917,2]
[388766393,1759351870473,-500.0,0.00021917,2]
[388766394,1759351870482,-500.0,0.00021917,2]
[388766395,1759351870492,-500.0,0.00021917,2]
[388766396,1759351870501,-500.0,0.00021917,2]
[388766397,1759351870511,-480.0,0.00021917,2]
[388766398,1759351870519,-641.21,0.00021917,2]
[388766399,1759351870528,-495.46,0.00021917,2]
[388766400,1759351870537,-500.0,0.00021917,2]
[388766401,1759351870547,-500.0,0.00021917,2]
[388766402,1759351870556,-500.0,0.00021917,2]
[388766403,1759351870565,-500.0,0.00021917,2]
[388766404,1759351870575,-827.84,0.00021917,2]
[388766405,1759351870584,-500.0,0.00021917,2]
[388766406,1759351870594,-1132.39,0.00021917,2]
[388766407,1759351870603,-500.0,0.00021917,2]
[388766408,1759351870612,-500.0,0.00021917,2]
[388766409,1759351870622,-1233.9,0.00021917,2]
[388766410,1759351870631,-480.0,0.00021917,2]
[388766411,1759351870639,-500.0,0.00021917,2]
[388766412,1759351870649,-509.52,0.00021917,2]
[388766413,1759351870658,-480.0,0.00021917,2]
[388766414,1759351870667,-500.0,0.00021917,2]
[388766415,1759351870677,-500.0,0.00021917,2]
[388766416,1759351870686,-500.0,0.00021917,2]
[388766417,1759351870695,-500.0,0.00021917,2]
[388766418,1759351870704,-578.69,0.00021917,2]
[388766419,1759351870714,-500.0,0.00021917,2]
[388766420,1759351870723,-480.0,0.00021917,2]
[388766421,1759351870732,-1304.76,0.00021917,2]
[388766422,1759351870742,-507.73,0.00021917,2]
[388766423,1759351870751,-1265.35,0.00021917,2]
[388766424,1759351870760,-480.0,0.00021917,2]
[388766425,1759351870769,-500.0,0.00021917,2]
[388766426,1759351870778,-840.12,0.00021917,2]
[388766427,1759351870787,-500.0,0.00021917,2]
[388766428,1759351870796,-480.0,0.00021917,2]
[388766429,1759351870806,-500.0,0.00021917,2]
[388766430,1759351870815,-500.0,0.00021917,2]
[388766431,1759351870825,-500.0,0.00021917,2]
[388766432,1759351870834,-513.68,0.00021917,2]
[388766433,1759351870843,-465.27,0.00021917,2]
[388766434,1759351870852,-519.3,0.00021917,2]
[388766435,1759351870861,-586.2,0.00021917,2]
[388766436,1759351870870,-515.37,0.00021917,2]
[388766437,1759351870879,-500.0,0.00021917,2]
[388766438,1759351870888,-572.52,0.00021917,2]
[388766439,1759351870897,-500.0,0.00021917,2]
[388766440,1759351870906,-152.004238,0.00021918,2]
[388766441,1759351870915,-151.0,0.00021918,2]
[388766442,1759351870925,-151.0,0.00021918,2]
[388766443,1759351870933,-151.0,0.00021918,2]
[388766444,1759351870943,-151.0,0.00021918,2]
[388766445,1759351870956,-261.060654,0.00021918,2]
[388766446,1759351870965,-2500.0,0.00021964,2]
[388766447,1759351870974,-1050.24432547,0.00021964,2]
[388766448,1759351870983,-261.0,0.00021966,2]
[388766449,1759351870993,-600.0,0.0002199,2]
[388766450,1759351871002,-261.0,0.0002199,2]
[388766451,1759351871011,-7494.3,0.00022,2]
[388766452,1759351871023,-151.0,0.00022,7]
[388766453,1759351871033,-190.646693,0.00022,7]
[388766454,1759351871043,-151.0,0.00022,7]
[388766455,1759351871053,-151.0,0.00022,7]
[388766456,1759351871064,-460.0,0.00022092,2]
[388766457,1759351871075,-261.0,0.00022094,2]
[388766458,1759351871086,-261.0,0.00022094,2]
[388766459,1759351871095,-261.0,0.00022129,2]
[388766460,1759351871104,-261.0,0.00022167,2]
[388766461,1759351871113,-500.0,0.00022191,2]
[388766462,1759351871123,-500.0,0.00022191,2]
[388766463,1759351871132,-392.51,0.00022191,2]
[388766464,1759351871141,-500.0,0.00022191,2]
[388766465,1759351871151,-500.0,0.00022191,2]
[388766466,1759351871160,-500.0,0.00022191,2]
[388766467,1759351871169,-500.0,0.00022191,2]
[388766468,1759351871178,-159.933692,0.00022191,7]
[388766469,1759351871187,-480.0,0.00022191,2]
[388766470,1759351871196,-502.68,0.00022191,2]
[388766471,1759351871206,-153.056476,0.00022191,7]
[388766472,1759351871215,-397.09,0.00022191,2]
[388766473,1759351871224,-500.0,0.00022191,2]
[388766474,1759351871233,-500.0,0.00022191,2]
[388766475,1759351871242,-500.0,0.00022191,2]
[388766476,1759351871251,-500.0,0.00022191,2]
[388766477,1759351871260,-500.0,0.00022191,2]
[388766478,1759351871269,-500.0,0.00022191,2]
[388766479,1759351871278,-461.04,0.00022191,2]
[388766480,1759351871287,-626.05,0.00022191,2]
[388766481,1759351871296,-500.0,0.00022191,2]
[388766482,1759351871306,-500.0,0.00022191,2]
[388766483,1759351871317,-500.0,0.00022191,2]
[388766484,1759351871326,-500.0,0.00022191,2]
[388766485,1759351871335,-463.34,0.00022191,2]
[388766486,1759351871344,-567.54,0.00022191,2]
[388766487,1759351871428,-500.0,0.00022191,2]
[388766488,1759351871438,-282.75,0.00022191,2]
[388766489,1759351871448,-500.0,0.00022191,2]
[388766490,1759351871457,-401.89,0.00022191,2]
[388766491,1759351871466,-153.59,0.00022191,2]
[388766492,1759351871475,-151.0,0.00022191,7]
[388766493,1759351871483,-571.20898117,0.00022191,2]
[388766494,1759351871492,-500.0,0.00022191,2]
[388766495,1759351871501,-480.0,0.00022191,2]
[388766496,1759351871511,-500.0,0.00022191,2]
[388766497,1759351871520,-500.0,0.00022191,2]
[388766498,1759351871529,-151.0,0.00022191,7]
[388766499,1759351871539,-151.0,0.00022191,7]
[388766500,1759351871548,-500.0,0.00022191,2]
[388766501,1759351871558,-480.0,0.00022191,2]
[388766502,1759351871568,-653.02,0.00022191,2]
[388766503,1759351871577,-480.0,0.00022191,2]
[388766504,1759351871587,-724.68,0.00022191,2]
[388766505,1759351871596,-500.0,0.00022191,2]
[388766506,1759351871607,-191.34,0.00022191,2]
[388766507,1759351871616,-597.78,0.00022191,2]
[388766508,1759351871625,-664.63,0.00022191,2]
[388766509,1759351871635,-500.0,0.00022191,2]
[388766510,1759351871644,-480.0,0.00022191,2]
[388766511,1759351871654,-521.19,0.00022191,2]
[388766512,1759351871663,-480.0,0.00022191,2]
[388766513,1759351871673,-1827.76,0.00022191,2]
[388766514,1759351871682,-480.0,0.00022191,2]
[388766515,1759351871692,-500.0,0.00022191,2]
[388766516,1759351871701,-500.0,0.00022191,2]
[388766517,1759351871710,-500.0,0.00022191,2]
[388766518,1759351871720,-4334.58,0.00022191,2]
[388766519,1759351871729,-490.42,0.00022191,2]
[388766520,1759351871739,-772.96,0.00022191,2]
[388766521,1759351871748,-500.0,0.00022191,2]
[388766522,1759351871758,-480.0,0.00022191,2]
[388766523,1759351871767,-480.0,0.00022191,2]
[388766524,1759351871776,-480.0,0.00022191,2]
[388766525,1759351871785,-500.0,0.00022191,2]
[388766526,1759351871795,-581.9,0.00022191,2]
[388766527,1759351871805,-640.75,0.00022191,2]
[388766528,1759351871814,-545.16,0.00022191,2]
[388766529,1759351871824,-500.0,0.00022191,2]
[388766530,1759351871834,-618.88,0.00022191,2]
[388766531,1759351871844,-284.8628637,0.00022191,2]
[388766532,1759351871854,-500.0,0.00022191,2]
[388766533,1759351871864,-500.0,0.00022191,2]
[388766534,1759351871873,-430.4,0.00022191,2]
[388766535,1759351871883,-500.0,0.00022191,2]
[388766536,1759351871894,-578.23,0.00022191,2]
[388766537,1759351871903,-422.46090771,0.00022191,2]
[388766538,1759351871913,-500.0,0.00022191,2]
[388766539,1759351871922,-827.84,0.00022191,2]
[388766540,1759351871932,-500.0,0.00022191,2]
[388766541,1759351871942,-1132.39,0.00022191,2]
[388766542,1759351871957,-500.0,0.00022191,2]
[388766543,1759351871966,-500.0,0.00022191,2]
[388766544,1759351871976,-1233.9,0.00022191,2]
[388766545,1759351871985,-500.0,0.00022191,2]
[388766546,1759351871996,-509.52,0.00022191,2]
[388766547,1759351872005,-500.0,0.00022191,2]
[388766548,1759351872015,-500.0,0.00022191,2]
[388766549,1759351872028,-500.0,0.00022191,2]
[388766550,1759351872037,-500.0,0.00022191,2]
[388766551,1759351872046,-578.69,0.00022191,2]
[388766552,1759351872056,-500.0,0.00022191,2]
[388766553,1759351872066,-1304.76,0.00022191,2]
[388766554,1759351872076,-1265.35,0.00022191,2]
[388766555,1759351872086,-500.0,0.00022191,2]
[388766556,1759351872096,-840.12,0.00022191,2]
[388766557,1759351872105,-390.87,0.00022191,2]
[388766558,1759351872115,-495.25,0.00022191,2]
[388766559,1759351872125,-167.51,0.00022191,2]
[388766560,1759351872135,-500.0,0.00022191,2]
[388766561,1759351872145,-586.2,0.00022191,2]
[388766562,1759351872154,-380.19693214,0.00022191,2]
[388766563,1759351872164,-572.52,0.00022191,2]
[388766564,1759351872174,-500.0,0.00022191,2]
[388766565,1759351872184,-261.0,0.00022231,2]
[388766566,1759351872194,-587.0,0.00022329,2]
[388766567,1759351872204,-151.0,0.000224,6]
[388766568,1759351872214,-500.0,0.00022455,2]
[388766569,1759351872224,-1000.0,0.00022455,2]
[388766570,1759351872233,-296.333,0.0002246,2]
[388766571,1759351872243,-426.9,0.00022465,2]
[388766572,1759351872253,-500.0,0.00022465,2]
[388766573,1759351872262,-500.0,0.00022465,2]
[388766574,1759351872272,-518.15,0.00022465,2]
[388766575,1759351872282,-500.0,0.00022465,2]
[388766576,1759351872291,-380.79,0.00022465,2]
[388766577,1759351872301,-502.68,0.00022465,2]
[388766578,1759351872310,-228.35,0.00022465,2]
[388766579,1759351872320,-516.22666989,0.00022465,2]
[388766580,1759351872330,-500.0,0.00022465,2]
[388766581,1759351872339,-500.0,0.00022465,2]
[388766582,1759351872349,-500.0,0.00022465,2]
[388766583,1759351872358,-500.0,0.00022465,2]
[388766584,1759351872368,-626.05,0.00022465,2]
[388766585,1759351872377,-500.0,0.00022465,2]
[388766586,1759351872387,-500.0,0.00022465,2]
[388766587,1759351872396,-500.0,0.00022465,2]
[388766588,1759351872406,-500.0,0.00022465,2]
[388766589,1759351872415,-567.54,0.00022465,2]
[388766590,1759351872425,-500.0,0.00022465,2]
[388766591,1759351872434,-500.0,0.00022465,2]
[388766592,1759351872443,-343.0263642,0.00022465,2]
[388766593,1759351872452,-500.0,0.00022465,2]
[388766594,1759351872462,-483.12,0.00022465,2]
[388766595,1759351872471,-628.52,0.00022465,2]
[388766596,1759351872481,-653.02,0.00022465,2]
[388766597,1759351872490,-724.68,0.00022465,2]
[388766598,1759351872499,-590.08,0.00022465,2]
[388766599,1759351872509,-597.78,0.00022465,2]
[388766600,1759351872518,-664.63,0.00022465,2]
[388766601,1759351872527,-467.65,0.00022465,2]
[388766602,1759351872537,-521.19,0.00022465,2]
[388766603,1759351872546,-1827.76,0.00022465,2]
[388766604,1759351872556,-198.69093922,0.00022465,2]
[388766605,1759351872565,-500.0,0.00022465,2]
[388766606,1759351872575,-500.0,0.00022465,2]
[388766607,1759351872584,-4334.58,0.00022465,2]
[388766608,1759351872593,-772.96,0.00022465,2]
[388766609,1759351872601,-500.0,0.00022465,2]
[388766610,1759351872611,-159.17651839,0.00022465,2]
[388766611,1759351872620,-581.9,0.00022465,2]
[388766612,1759351872630,-640.75,0.00022465,2]
[388766613,1759351872640,-500.0,0.00022465,2]
[388766614,1759351872721,-618.88,0.00022465,2]
[388766615,1759351872731,-500.0,0.00022465,2]
[388766616,1759351872740,-500.0,0.00022465,2]
[388766617,1759351872750,-500.0,0.00022465,2]
[388766618,1759351872759,-500.0,0.00022465,2]
[388766619,1759351872768,-827.84,0.00022465,2]
[388766620,1759351872778,-500.0,0.00022465,2]
[388766621,1759351872789,-1132.39,0.00022465,2]
[388766622,1759351872798,-500.0,0.00022465,2]
[388766623,1759351872808,-611.7441434,0.00022465,2]
[388766624,1759351872817,-1233.9,0.00022465,2]
[388766625,1759351872827,-500.0,0.00022465,2]
[388766626,1759351872837,-509.52,0.00022465,2]
[388766627,1759351872847,-500.0,0.00022465,2]
[388766628,1759351872857,-375.74,0.00022465,2]
[388766629,1759351872867,-500.0,0.00022465,2]
[388766630,1759351872877,-500.0,0.00022465,2]
[388766631,1759351872887,-578.69,0.00022465,2]
[388766632,1759351872897,-500.0,0.00022465,2]
[388766633,1759351872906,-1304.76,0.00022465,2]
[388766634,1759351872915,-1265.35,0.00022465,2]
[388766635,1759351872925,-500.0,0.00022465,2]
[388766636,1759351872935,-840.12,0.00022465,2]
[388766637,1759351872945,-500.0,0.00022465,2]
[388766638,1759351872957,-586.2,0.00022465,2]
[388766639,1759351872966,-572.52,0.00022465,2]
[388766640,1759351872976,-500.0,0.00022465,2]
[388766641,1759351872985,-254.0,0.00022493,7]
[388766642,1759351872995,-261.0,0.00022499,2]
[388766643,1759351873004,-261.0,0.00022505,2]
[388766644,1759351873014,-900.0,0.00022538,2]
[388766645,1759351873025,-2351.0,0.00022541,2]
[388766646,1759351873035,-2351.0,0.00022547,2]
[388766647,1759351873045,-560.0,0.0002264,2]
[388766648,1759351873055,-261.0,0.0002265,2]
[388766649,1759351873065,-500.0,0.00022739,2]
[388766650,1759351873075,-500.0,0.00022739,2]
[388766651,1759351873085,-500.0,0.00022739,2]
[388766652,1759351873094,-502.68,0.00022739,2]
[388766653,1759351873103,-214.58,0.00022739,2]
[388766654,1759351873112,-500.0,0.00022739,2]
[388766655,1759351873122,-222.56,0.00022739,2]
[388766656,1759351873132,-500.0,0.00022739,2]
[388766657,1759351873141,-626.05,0.00022739,2]
[388766658,1759351873150,-500.0,0.00022739,2]
[388766659,1759351873160,-500.0,0.00022739,2]
[388766660,1759351873169,-500.0,0.00022739,2]
[388766661,1759351873178,-500.0,0.00022739,2]
[388766662,1759351873188,-567.54,0.00022739,2]
[388766663,1759351873198,-500.0,0.00022739,2]
[388766664,1759351873207,-122.93265074,0.00022739,2]
[388766665,1759351873610,-500.0,0.00019178,2]
[388766666,1759351873624,-500.0,0.00019178,2]
[388766667,1759351873635,-256.1,0.00019452,2]
[388766668,1759351873658,-243.9,0.00019452,2]
[388766669,1759351873667,-500.0,0.00019726,2]
[388766670,1759351873677,-400.0,0.0002,2]
[388766671,1759351873687,-151.0,0.00020547,2]
[388766672,1759351873697,-151.0,0.00021643,2]
[388766673,1759351873706,-151.0,0.00021643,2]
[388766674,1759351873716,-1436.94,0.00021917,2]
[388766675,1759351873726,-1436.94,0.00022191,2]
[388766676,1759351873735,-1436.94,0.00022465,2]
[388766677,1759351873745,-370.03734926,0.00022739,2]
[388766678,1759351873754,-653.02,0.00022739,2]
[388766679,1759351873764,-724.68,0.00022739,2]
[388766680,1759351873774,-597.78,0.00022739,2]
[388766681,1759351873784,-664.63,0.00022739,2]
[388766682,1759351873793,-521.19,0.00022739,2]
[388766683,1759351873803,-1827.76,0.00022739,2]
[388766684,1759351873813,-270.34,0.00022739,2]
[388766685,1759351873823,-500.0,0.00022739,2]
[388766686,1759351873833,-4334.58,0.00022739,2]
[388766687,1759351873843,-772.96,0.00022739,2]
[388766688,1759351873852,-518.05,0.00022739,2]
[388766689,1759351873862,-581.9,0.00022739,2]
[388766690,1759351873872,-640.75,0.00022739,2]
[388766691,1759351873881,-500.0,0.00022739,2]
[388766692,1759351873890,-618.88,0.00022739,2]
[388766693,1759351873900,-221.98802242,0.00022739,2]
[388766694,1759351873909,-500.0,0.00022739,2]
[388766695,1759351873918,-320.41854206,0.00022739,2]
[388766696,1759351873928,-500.0,0.00022739,2]
[388766697,1759351873938,-827.84,0.00022739,2]
[388766698,1759351873952,-500.0,0.00022739,2]
[388766699,1759351874194,-1132.39,0.00022739,2]
[388766700,1759351874209,-500.0,0.00022739,2]
[388766701,1759351874222,-1233.9,0.00022739,2]
[388766702,1759351874232,-500.0,0.00022739,2]
[388766703,1759351874242,-509.52,0.00022739,2]
[388766704,1759351874251,-500.0,0.00022739,2]
[388766705,1759351874260,-500.0,0.00022739,2]
[388766706,1759351874270,-500.0,0.00022739,2]
[388766707,1759351874279,-578.69,0.00022739,2]
[388766708,1759351874288,-500.0,0.00022739,2]
[388766709,1759351874297,-1304.76,0.00022739,2]
[388766710,1759351874306,-1265.35,0.00022739,2]
[388766711,1759351874318,-500.0,0.00022739,2]
[388766712,1759351874329,-840.12,0.00022739,2]
[388766713,1759351874338,-500.0,0.00022739,2]
[388766714,1759351874347,-586.2,0.00022739,2]
[388766715,1759351874356,-572.52,0.00022739,2]
[388766716,1759351874365,-500.0,0.00022739,2]
[388766717,1759351874374,-1436.94,0.00022739,2]
[388766718,1759351874383,-261.0,0.00022756,2]
[388766719,1759351874392,-261.0,0.00022805,2]
[388766720,1759351874402,-261.0,0.00022827,2]
[388766721,1759351874411,-261.0,0.00022834,2]
[388766722,1759351874421,-151.0,0.000229,9]
[388766723,1759351874430,-160.0,0.00023,2]
[388766724,1759351874439,-1500.0,0.00023003,2]
[388766725,1759351874448,-330.35,0.00023013,2]
[388766726,1759351874457,-204.48,0.00023013,2]
[388766727,1759351874466,-432.77,0.00023013,2]
[388766728,1759351874474,-502.68,0.00023013,2]
[388766729,1759351874483,-500.0,0.00023013,2]
[388766730,1759351874492,-500.0,0.00023013,2]
[388766731,1759351874502,-626.05,0.00023013,2]
[388766732,1759351874511,-500.0,0.00023013,2]
[388766733,1759351874520,-151.0,0.00023013,7]
[388766734,1759351874529,-182.785696,0.00023013,7]
[388766735,1759351874538,-151.0,0.00023013,7]
[388766736,1759351874547,-500.0,0.00023013,2]
[388766737,1759351874556,-151.0,0.00023013,7]
[388766738,1759351874566,-151.0,0.00023013,7]
[388766739,1759351874577,-500.0,0.00023013,2]
[388766740,1759351874599,-567.54,0.00023013,2]
[388766741,1759351874618,-199.78,0.00023013,2]
[388766742,1759351874640,-653.02,0.00023013,2]
[388766743,1759351874662,-724.68,0.00023013,2]
[388766744,1759351874684,-597.78,0.00023013,2]
[388766745,1759351874706,-664.63,0.00023013,2]
[388766746,1759351874728,-521.19,0.00023013,2]
[388766747,1759351874752,-1827.76,0.00023013,2]
[388766748,1759351874773,-627.41,0.00023013,2]
[388766749,1759351874796,-4334.58,0.00023013,2]
[388766750,1759351874818,-772.96,0.00023013,2]
[388766751,1759351874838,-581.9,0.00023013,2]
[388766752,1759351874862,-640.75,0.00023013,2]
[388766753,1759351874884,-500.0,0.00023013,2]
[388766754,1759351874905,-618.88,0.00023013,2]
[388766755,1759351874917,-361.09533773,0.00023013,2]
[388766756,1759351874927,-500.0,0.00023013,2]
[388766757,1759351874937,-827.84,0.00023013,2]
[388766758,1759351874950,-500.0,0.00023013,2]
[388766759,1759351874960,-1132.39,0.00023013,2]
[388766760,1759351874969,-500.0,0.00023013,2]
[388766761,1759351874979,-1233.9,0.00023013,2]
[388766762,1759351874988,-500.0,0.00023013,2]
[388766763,1759351874997,-509.52,0.00023013,2]
[388766764,1759351875007,-420.39827618,0.00023013,2]
[388766765,1759351875016,-500.0,0.00023013,2]
[388766766,1759351875025,-500.0,0.00023013,2]
[388766767,1759351875034,-578.69,0.00023013,2]
[388766768,1759351875043,-500.0,0.00023013,2]
[388766769,1759351875052,-1304.76,0.00023013,2]
[388766770,1759351875062,-1265.35,0.00023013,2]
[388766771,1759351875071,-500.0,0.00023013,2]
[388766772,1759351875081,-840.12,0.00023013,2]
[388766773,1759351875090,-500.0,0.00023013,2]
[388766774,1759351875100,-586.2,0.00023013,2]
[388766775,1759351875109,-572.52,0.00023013,2]
[388766776,1759351875118,-500.0,0.00023013,2]
[388766777,1759351875127,-1436.94,0.00023013,2]
[388766778,1759351875136,-261.0,0.00023032,2]
[388766779,1759351875145,-1670.91130151,0.00023052,2]
[388766780,1759351875154,-154.450076,0.00023068,2]
[388766781,1759351875165,-1200.0,0.00023086,2]
[388766782,1759351875174,-261.0,0.00023144,2]
[388766783,1759351875183,-660.0,0.00023188,2]
[388766784,1759351875192,-7494.3,0.000232,2]
[388766785,1759351875202,-502.68,0.00023287,2]
[388766786,1759351875212,-460.0,0.00023287,2]
[388766787,1759351875221,-500.0,0.00023287,2]
[388766788,1759351875231,-626.05,0.00023287,2]
[388766789,1759351875240,-500.0,0.00023287,2]
[388766790,1759351875249,-479.32196827,0.00023287,2]
[388766791,1759351875258,-500.0,0.00023287,2]
[388766792,1759351875267,-567.54,0.00023287,2]
[388766793,1759351875276,-653.02,0.00023287,2]
[388766794,1759351875285,-724.68,0.00023287,2]
[388766795,1759351875294,-597.78,0.00023287,2]
[388766796,1759351875304,-664.63,0.00023287,2]
[388766797,1759351875313,-521.19,0.00023287,2]
[388766798,1759351875322,-1827.76,0.00023287,2]
[388766799,1759351875332,-2082.01137989,0.00023287,2]
[388766800,1759351875654,-500.0,0.00019178,2]
[388766801,1759351875663,-500.0,0.00019178,2]
[388766802,1759351875673,-500.0,0.00019452,2]
[388766803,1759351875682,-480.0,0.00019452,2]
[388766804,1759351875691,-259.81929005,0.00019452,2]
[388766805,1759351875702,-240.18070995,0.00019452,2]
[388766806,1759351875711,-500.0,0.00019726,2]
[388766807,1759351875720,-285.50849014,0.00019726,2]
[388766808,1759351875731,-214.49150986,0.00019726,2]
[388766809,1759351875740,-500.0,0.0002,2]
[388766810,1759351875749,-500.0,0.0002,2]
[388766811,1759351875759,-500.0,0.00020273,2]
[388766812,1759351875768,-903.370101,0.00020547,2]
[388766813,1759351875777,-151.0,0.00020547,2]
[388766814,1759351875786,-903.370101,0.00020547,2]
[388766815,1759351875795,-903.370101,0.00021643,2]
[388766816,1759351875805,-151.0,0.00021643,2]
[388766817,1759351875814,-903.370101,0.00021643,2]
[388766818,1759351875824,-2146.72895887,0.00023287,2]
[388766819,1759351875835,-105.83966124,0.00023287,2]
[388766820,1759351875844,-757.42033875,0.00023287,2]
[388766821,1759351875855,-15.53966125,0.00023287,2]
[388766822,1759351875864,-384.46033875,0.00023287,2]
[388766823,1759351875875,-197.43966125,0.00023287,2]
[388766824,1759351875884,-287.34603475,0.00023287,2]
[388766825,1759351875895,-353.40396525,0.00023287,2]
[388766826,1759351875904,-507.44,0.00023287,2]
[388766827,1759351875913,-618.88,0.00023287,2]
[388766828,1759351875922,-500.0,0.00023287,2]
[388766829,1759351875930,-827.84,0.00023287,2]
[388766830,1759351875940,-500.0,0.00023287,2]
[388766831,1759351875955,-1132.39,0.00023287,2]
[388766832,1759351875964,-500.0,0.00023287,2]
[388766833,1759351875973,-1233.9,0.00023287,2]
[388766834,1759351875982,-347.96,0.00023287,2]
[388766835,1759351875993,-509.52,0.00023287,2]
[388766836,1759351876002,-500.0,0.00023287,2]
[388766837,1759351876011,-500.0,0.00023287,2]
[388766838,1759351876023,-578.69,0.00023287,2]
[388766839,1759351876033,-500.0,0.00023287,2]
[388766840,1759351876042,-1304.76,0.00023287,2]
[388766841,1759351876051,-1265.35,0.00023287,2]
[388766842,1759351876061,-290.08,0.00023287,2]
[388766843,1759351876070,-840.12,0.00023287,2]
[388766844,1759351876080,-500.0,0.00023287,2]
[388766845,1759351876089,-586.2,0.00023287,2]
[388766846,1759351876098,-572.52,0.00023287,2]
[388766847,1759351876107,-500.0,0.00023287,2]
[388766848,1759351876116,-1436.94,0.00023287,2]
[388766849,1759351876126,-584.6894659,0.00023312,2]
[388766850,1759351876136,-766.49234037,0.00023333,4]
[388766851,1759351876155,-500.0,0.00020547,2]
[388766852,1759351876164,-542.09050609,0.00023333,4]
[388766853,1759351876450,-216.4,0.00019168,3]
[388766854,1759351876460,-428.00028182,0.00020538,3]
[388766855,1759351876471,-4.79971818,0.00020538,3]
[388766856,1759351876480,-903.370101,0.00020547,2]
[388766857,1759351876490,-77.10120694,0.00020821,2]
[388766858,1759351876501,-422.89879306,0.00020821,2]
[388766859,1759351876510,-488.07965615,0.00021095,2]
[388766860,1759351876519,-903.370101,0.00021643,2]
[388766861,1759351876528,-2691.41715354,0.00023333,4]
[388766862,1759351876537,-630.0,0.00023337,2]
[388766863,1759351876546,-2156.0,0.00023337,2]
[388766864,1759351876555,-150.0,0.00023337,2]
[388766865,1759351876565,-410.0,0.00023337,2]
[388766866,1759351876573,-428.711,0.00023337,2]
[388766867,1759351876583,-151.0,0.000234,5]
[388766868,1759351876591,-558.0,0.00023422,20]
[388766869,1759351876601,-261.0,0.0002348,2]
[388766870,1759351876610,-294.39198001,0.00023551,2]
[388766871,1759351876619,-151.0,0.00023561,7]
[388766872,1759351876628,-151.0,0.00023561,7]
[388766873,1759351876638,-502.68,0.00023561,2]
[388766874,1759351876647,-500.0,0.00023561,2]
[388766875,1759351876656,-626.05,0.00023561,2]
[388766876,1759351876665,-267.65,0.00023561,2]
[388766877,1759351876674,-500.0,0.00023561,2]
[388766878,1759351876683,-567.54,0.00023561,2]
[388766879,1759351876692,-653.02,0.00023561,2]
[388766880,1759351876701,-724.68,0.00023561,2]
[388766881,1759351876710,-664.63,0.00023561,2]
[388766882,1759351876720,-521.19,0.00023561,2]
[388766883,1759351876729,-4334.58,0.00023561,2]
[388766884,1759351876738,-772.96,0.00023561,2]
[388766885,1759351876748,-581.9,0.00023561,2]
[388766886,1759351876758,-640.75,0.00023561,2]
[388766887,1759351876767,-618.88,0.00023561,2]